bitfinex-derivatives/quotes_SOLF0:USTF0_20251024
["timestamp","ask_amount","ask_price","bid_price","bid_amount"]
[1761305800290,4.7033,191.32,191.29,4.35871658]
[1761305800492,4.7033,191.32,191.22,8.8455]
[1761305800493,4.7033,191.32,191.31,4.35871658]
[1761305801996,4.7033,191.32,191.31,1.53871658]
[1761305802590,4.7033,191.32,191.28,1.53871658]
[1761305802898,4.7033,191.32,191.29,2.82]
[1761305803997,4.7033,191.32,191.3,1.53871658]
[1761305804195,4.7019,191.38,191.31,2.82]
[1761305804403,4.7019,191.38,191.36,1.53871658]
[1761305804600,1.28,191.37,191.31,4.35871658]
[1761305805495,4.7023,191.36,191.33,1.53871658]
[1761305805695,4.7023,191.36,191.34,2.82]
[1761305806906,4.7019,191.38,191.34,2.82]
[1761305807105,5.9819,191.38,191.34,2.82]
[1761305807304,1.28,191.38,191.34,2.82]
[1761305808097,3.95101724,191.4,191.34,2.82]
[1761305808298,4.7022,191.37,191.35,1.53871658]
[1761305808498,4.7022,191.37,191.36,2.82]
[1761305808999,4.7022,191.37,191.33,2.82]
[1761305809206,4.7025,191.36,191.33,2.82]
[1761305811196,1.28,191.36,191.27,2.82]
[1761305812097,4.7034,191.32,191.27,2.82]
[1761305814509,1.28,191.4,191.27,2.82]
[1761305814802,1.28,191.38,191.3,2.82]
[1761305815306,6.50481833,191.46,191.3,2.82]
[1761305815307,3.95235302,191.39,191.3,2.82]
[1761305815605,1.28,191.45,191.34,2.82]
[1761305815906,1.28,191.43,191.34,2.82]
[1761305816106,5.23348381,191.42,191.34,2.82]
[1761305816307,1.28,191.42,191.34,2.82]
[1761305816912,4.7015,191.4,191.34,2.82]
[1761305817111,1.28,191.42,191.34,2.82]
[1761305818011,4.7017,191.39,191.34,2.82]
[1761305818811,1.28,191.42,191.34,2.82]
[1761305819515,4.7017,191.39,191.34,2.82]
[1761305821016,5.992,191.38,191.34,2.82]
[1761305823013,4.702,191.38,191.34,2.82]
[1761305824216,5.9923,191.36,191.31,2.71]
[1761305824515,1.29,191.36,191.31,2.71]
[1761305826017,4.7027,191.35,191.31,2.71]
[1761305826409,5.9927,191.35,191.31,2.71]
[1761305827612,4.7027,191.35,191.31,2.71]
[1761305828511,4.7021,191.37,191.31,2.71]
[1761305828716,1.29,191.38,191.31,2.71]
[1761305829118,4.7026,191.35,191.31,2.71]
[1761305829617,4.85310513,191.44,191.31,2.71]
[1761305829818,1.29,191.4,191.32,2.71]
[1761305830311,3.95743559,191.39,191.32,2.71]
[1761305830506,1.29,191.4,191.32,2.71]
[1761305830710,3.95722737,191.39,191.32,2.71]
[1761305830912,1.29,191.4,191.32,2.71]
[1761305831210,4.7024,191.36,191.32,2.71]
[1761305835119,4.7019,191.38,191.32,2.71]
[1761305835325,4.7019,191.38,191.34,2.71]
[1761305835615,4.7019,191.38,191.34,2.40181931]
[1761305835820,4.7019,191.38,191.35,2.71]
[1761305836420,9.96766938,191.42,191.35,2.71]
[1761305836614,3.93832112,191.41,191.35,2.71]
[1761305836818,1.29,191.42,191.35,2.71]
[1761305837820,1.29,191.42,191.36,2.71]
[1761305838123,4.7014,191.4,191.36,2.71]
[1761305839315,4.7014,191.4,191.38,2.71]
[1761305839519,4.7014,191.4,191.37,44.7]
[1761305839916,4.7014,191.4,191.37,47.41]
[1761305841627,4.7014,191.4,191.38,2.71]
[1761305842926,4.7014,191.4,191.39,2.71]
[1761305844423,4.7014,191.4,191.38,47.39]
[1761305844619,4.7014,191.4,191.38,44.68]
[1761305844822,9.3992,191.47,191.37,44.68]
[1761305844823,4.7017,191.39,191.37,44.68]
[1761305845022,4.7017,191.39,191.37,47.39]
[1761305845527,4.7012,191.41,191.38,2.71]
[1761305846828,4.7012,191.41,191.39,44.68]
[1761305847521,4.7012,191.41,191.39,47.39]
[1761305847723,4.7012,191.41,191.4,2.71]
[1761305847924,5.9902,191.45,191.4,47.39]
[1761305848126,1.29,191.48,191.41,2.71]
[1761305848426,44.7,191.55,191.41,44.68]
[1761305848427,1.29,191.46,191.41,44.68]
[1761305848823,1.29,191.49,191.41,44.68]
[1761305849024,1.29,191.47,191.41,44.68]
[1761305849629,1.29,191.47,191.39,2.82]
[1761305849818,1.29,191.47,191.4,47.44]
[1761305850025,4.7005,191.44,191.41,2.76]
[1761305850720,4.7005,191.44,191.42,2.76]
[1761305852519,4.7005,191.44,191.42,47.42]
[1761305852928,4.7008,191.43,191.42,2.76]
[1761305853130,4.7008,191.43,191.41,47.42]
[1761305854733,4.7008,191.43,191.42,2.76]
[1761305855528,14.24950513,191.53,191.42,2.76]
[1761305855529,9.95912996,191.5,191.42,2.76]
[1761305855730,5.22486657,191.49,191.42,2.76]
[1761305855929,1.29,191.49,191.43,2.40181931]
[1761305856127,1.29,191.49,191.44,44.66]
[1761305856726,1.29,191.51,191.44,47.42]
[1761305856930,1.29,191.49,191.44,47.4]
[1761305857229,4.6999,191.46,191.44,47.4]
[1761305860349,4.6992,191.49,191.45,2.76]
[1761305860542,1.29,191.48,191.42,2.76]
[1761305860746,3.69181931,191.48,191.36,2.76]
[1761305860945,1.29,191.46,191.38,2.76]
[1761305861553,4.7006,191.43,191.38,2.76]
[1761305861848,1.29,191.45,191.38,2.76]
[1761305862346,1.29,191.45,191.39,44.64]
[1761305862644,1.29,191.45,191.4,44.64]
[1761305862849,4.7009,191.42,191.4,47.4]
[1761305863545,4.7009,191.42,191.4,2.76]
[1761305863746,4.7009,191.42,191.4,47.4]
[1761305864045,1.29,191.45,191.37,2.76]
[1761305864249,1.29,191.45,191.38,44.62]
[1761305866052,5.9909,191.42,191.38,47.38]
[1761305866251,1.29,191.41,191.34,2.76]
[1761305866453,1.29,191.41,191.35,44.62]
[1761305866747,4.7019,191.38,191.35,47.38]
[1761305867451,4.7019,191.38,191.36,2.76]
[1761305867646,4.7014,191.4,191.36,2.76]
[1761305869250,4.7014,191.4,191.37,47.38]
[1761305870243,4.7008,191.42,191.38,2.76]
[1761305870552,1.29,191.42,191.38,2.76]
[1761305872057,4.7012,191.41,191.38,2.76]
[1761305876958,1.29,191.47,191.4,1.53693833]
[1761305877262,1.29,191.43,191.39,44.6]
[1761305877657,1.29,191.41,191.39,44.6]
[1761305877854,1.29,191.41,191.34,2.76]
[1761305877855,1.29,191.4,191.34,2.76]
[1761305878054,1.29,191.4,191.35,47.36]
[1761305878356,4.702,191.37,191.35,47.36]
[1761305878558,1.29,191.37,191.33,1.53693833]
[1761305879056,1.29,191.35,191.3,2.76]
[1761305879359,1.29,191.35,191.32,2.63]
[1761305879549,1.29,191.35,191.28,2.63]
[1761305879750,1.29,191.35,191.28,4.16693833]
[1761305880057,1.29,191.35,191.28,1.53693833]
[1761305880264,1.29,191.32,191.27,46.13693833]
[1761305880563,1.29,191.32,191.29,1.53693833]
[1761305880744,1.29,191.37,191.29,4.16693833]
[1761305880945,1.29,191.35,191.27,44.6]
[1761305881147,1.29,191.35,191.27,1.53693833]
[1761305881965,1.29,191.35,191.07,73.2577]
[1761305881966,1.29,191.35,191.29,1.53693833]
[1761305882662,5.9933,191.32,191.29,1.53693833]
[1761305882961,5.9933,191.32,191.28,2.63]
[1761305884955,4.7033,191.32,191.28,2.63]
[1761305885160,4.7037,191.31,191.27,1.53693833]
[1761305885361,1.29,191.3,191.27,1.53693833]
[1761305886349,1.29,191.3,191.26,1.53693833]
[1761305886350,5.994,191.3,191.26,1.53693833]
[1761305886555,5.994,191.3,191.26,4.16693833]
[1761305886750,5.994,191.3,191.27,2.63]
[1761305887964,4.704,191.3,191.28,1.53693833]
[1761305888168,4.704,191.3,191.28,4.16693833]
[1761305889064,4.85310513,191.41,191.29,2.63]
[1761305889266,1.29,191.37,191.31,1.53693833]
[1761305889867,4.7032,191.33,191.31,1.53693833]
[1761305890171,4.7032,191.33,191.31,4.16693833]
[1761305891870,4.7032,191.33,191.32,2.63]
[1761305892871,4.7032,191.33,191.31,1.53693833]
[1761305894071,4.7032,191.33,191.31,4.16693833]
[1761305896575,4.7032,191.33,191.29,1.53693833]
[1761305896576,1.29,191.33,191.29,1.53693833]
[1761305897965,4.7039,191.3,191.29,1.53693833]
[1761305898175,4.7039,191.3,191.27,2.63]
[1761305898176,1.29,191.32,191.27,1.53693833]
[1761305898678,4.7042,191.28,191.24,2.63]
[1761305898969,4.7042,191.28,191.26,1.53693833]
[1761305899175,4.7042,191.28,191.27,2.63]
[1761305899979,1.29,191.28,191.23,2.63]
[1761305900274,1.29,191.28,191.17,62.0]
[1761305900275,1.29,191.27,191.17,2.63]
[1761305900463,82.5627,191.34,191.17,2.63]
[1761305900464,4.7058,191.22,191.17,2.63]
[1761305900668,5.9958,191.22,191.18,1.53693833]
[1761305901276,4.7058,191.22,191.2,1.53693833]
[1761305902177,4.7058,191.22,191.2,4.16693833]
[1761305902474,1.29,191.26,191.21,2.63]
[1761305902669,1.29,191.26,191.23,1.53693833]
[1761305904078,1.29,191.24,191.23,1.53693833]
[1761305905876,4.705,191.25,191.23,1.53693833]
[1761305906474,1.29,191.24,191.23,1.53693833]
[1761305906973,4.705,191.25,191.23,1.53693833]
[1761305907169,4.705,191.25,191.23,4.16693833]
[1761305907474,4.705,191.25,191.24,2.63]
[1761305908277,4.7045,191.27,191.24,2.63]
[1761305908469,4.7045,191.27,191.26,1.53693833]
[1761305908771,4.7045,191.27,191.26,4.31693833]
[1761305910976,1.53693833,191.36,191.27,2.71]
[1761305910977,4.7041,191.29,191.27,2.71]
[1761305911175,4.7041,191.29,191.28,1.53693833]
[1761305911366,4.7041,191.29,191.28,4.24693833]
[1761305911572,4.7035,191.32,191.29,2.71]
[1761305911776,4.7035,191.32,191.3,4.24693833]
[1761305911986,4.7035,191.32,191.31,2.71]
[1761305913177,4.7029,191.34,191.31,2.71]
[1761305913376,4.7029,191.34,191.33,1.53693833]
[1761305914780,4.7029,191.34,191.31,4.24693833]
[1761305914978,4.7029,191.34,191.31,4.26693833]
[1761305915278,4.7029,191.34,191.32,2.73]
[1761305915974,4.7029,191.34,191.33,1.53693833]
[1761305916175,4.7029,191.34,191.33,4.26693833]
[1761305916471,4.7024,191.36,191.34,2.73]
[1761305918276,1.29,191.34,191.27,2.73]
[1761305918476,1.29,191.34,191.28,4.26693833]
[1761305919982,4.7034,191.32,191.28,1.53693833]
[1761305920174,4.7034,191.32,191.29,2.73]
[1761305922280,1.29,191.34,191.29,2.73]
[1761305922488,1.29,191.29,191.21,2.73]
[1761305922678,2.82693833,191.27,191.21,2.73]
[1761305923979,4.7053,191.24,191.21,2.73]
[1761305932089,1.29,191.27,191.21,2.73]
[1761305932090,4.7048,191.26,191.21,2.73]
[1761305932393,4.7048,191.26,191.2,1.53693833]
[1761305932394,4.7048,191.26,191.23,2.73]
[1761305933698,5.9948,191.26,191.23,2.73]
[1761305934194,4.7048,191.26,191.23,2.73]
[1761305940794,4.7051,191.25,191.2,2.69]
[1761305941002,5.9951,191.25,191.21,2.69]
[1761305941494,4.7051,191.25,191.21,2.69]
[1761305944399,4.7046,191.27,191.22,2.69]
[1761305944605,4.7046,191.27,191.24,2.69]
[1761305945606,4.7048,191.26,191.24,2.69]
[1761305946504,1.29,191.25,191.23,2.40456606]
[1761305946909,4.7048,191.26,191.22,2.69]
[1761305949213,1.29,191.32,191.24,2.69]
[1761305951107,4.7038,191.3,191.24,2.69]
[1761305953215,5.9933,191.32,191.26,2.40456606]
[1761305953518,1.29,191.31,191.27,2.69]
[1761305954816,5.9936,191.31,191.27,2.69]
[1761305956919,4.7039,191.3,191.27,2.69]
[1761305958711,5.9939,191.3,191.27,2.69]
[1761305959114,4.7039,191.3,191.27,2.69]
[1761305960221,1.29,191.35,191.21,7.3958]
[1761305960410,1.29,191.33,191.22,47.09]
[1761305960614,1.29,191.33,191.23,2.69]
[1761305960809,5.9943,191.28,191.23,2.69]
[1761305961215,1.29,191.28,191.23,2.69]
[1761305963120,4.7046,191.27,191.23,44.38]
[1761305963423,4.7046,191.27,191.24,2.69]
[1761305964122,5.9946,191.27,191.24,2.69]
[1761305964317,5.994,191.29,191.24,2.69]
[1761305964519,1.29,191.28,191.24,2.69]
[1761305968821,4.704,191.29,191.24,2.69]
[1761305969025,5.994,191.29,191.24,2.69]
[1761305969324,1.29,191.28,191.24,2.69]
[1761305970324,4.704,191.29,191.24,2.69]
[1761305970625,5.994,191.29,191.24,2.69]
[1761305970822,1.29,191.28,191.24,2.69]
[1761305971923,4.704,191.29,191.24,2.69]
[1761305972119,5.994,191.29,191.24,2.69]
[1761305972528,4.704,191.29,191.25,2.75]
[1761305973827,1.29,191.3,191.26,2.75]
[1761305974026,1.29,191.3,191.2,2.75]
[1761305974222,4.7045,191.27,191.22,2.75]
[1761305974427,5.9945,191.27,191.22,2.75]
[1761305974626,1.29,191.26,191.22,2.75]
[1761305975130,1.29,191.26,191.23,47.09]
[1761305975830,5.9948,191.26,191.23,2.75]
[1761305976134,1.29,191.26,191.23,44.34]
[1761305976634,1.29,191.24,191.23,44.34]
[1761305976822,4.7051,191.25,191.23,44.34]
[1761305977834,5.9946,191.27,191.23,44.34]
[1761305978034,1.29,191.26,191.23,44.34]
[1761305980031,4.7041,191.29,191.24,2.75]
[1761305980334,1.29,191.29,191.24,2.75]
[1761305980929,4.7043,191.28,191.24,2.75]
[1761305981938,4.7043,191.28,191.24,7.4551]
[1761305982238,5.9939,191.3,191.25,2.75]
[1761305983234,4.704,191.29,191.25,2.75]
[1761305983936,5.9943,191.28,191.25,2.75]
[1761305987437,1.29,191.27,191.22,2.75]
[1761305987641,1.29,191.27,191.23,47.07]
[1761305988842,1.29,191.27,191.24,2.75]
[1761305989044,5.9946,191.27,191.24,2.75]
[1761305993540,1.29,191.25,191.23,44.3]
[1761305993941,1.29,191.25,191.22,2.75]
[1761305994145,1.29,191.24,191.23,44.3]
[1761305994850,1.29,191.24,191.19,7.4563]
[1761305995041,1.29,191.24,191.2,2.75]
[1761305995241,1.29,191.24,191.21,44.3]
[1761305995647,4.7046,191.27,191.22,2.75]
[1761305996449,5.9949,191.26,191.23,2.75]
[1761305996744,1.29,191.25,191.22,4.28896472]
[1761305998049,5.9949,191.26,191.23,2.75]
[1761306000644,4.7049,191.26,191.23,2.75]
[1761306000845,4.7049,191.26,191.24,1.53896472]
[1761306001047,5.9943,191.28,191.25,44.28]
[1761306001247,1.29,191.32,191.27,2.86]
[1761306001446,1.29,191.32,191.29,4.39896472]
[1761306001647,1.29,191.32,191.29,48.67896472]
[1761306002553,4.7036,191.31,191.29,44.28]
[1761306002754,1.29,191.3,191.29,44.28]
[1761306002953,4.7036,191.31,191.29,44.28]
[1761306004861,4.7036,191.31,191.29,47.14]
[1761306005460,4.7036,191.31,191.3,2.86]
[1761306005649,4.7036,191.31,191.29,44.28]
[1761306005856,4.7036,191.31,191.29,47.14]
[1761306007568,4.7029,191.34,191.3,2.86]
[1761306007867,4.7029,191.34,191.32,2.86]
[1761306008167,4.7023,191.36,191.33,1.53896472]
[1761306008371,1.29,191.38,191.31,47.12]
[1761306008564,1.29,191.36,191.32,4.39896472]
[1761306008766,1.29,191.36,191.33,44.26]
[1761306009165,4.7026,191.35,191.33,47.12]
[1761306009363,4.7026,191.35,191.34,2.86]
[1761306010773,4.7021,191.37,191.34,2.86]
[1761306010974,1.29,191.37,191.34,2.86]
[1761306011165,1.29,191.37,191.34,4.39896472]
[1761306011365,1.29,191.37,191.34,2.86]
[1761306012068,4.7023,191.36,191.34,2.86]
[1761306015569,4.7019,191.38,191.34,2.86]
[1761306015973,4.7019,191.38,191.35,2.86]
[1761306016174,4.7019,191.38,191.36,47.08]
[1761306017279,4.7019,191.38,191.37,2.86]
[1761306017571,4.7019,191.38,191.36,44.22]
[1761306018177,1.29,191.36,191.29,4.39896472]
[1761306018381,1.29,191.36,191.3,47.08]
[1761306019066,4.7028,191.34,191.3,44.22]
[1761306019267,4.7028,191.34,191.31,2.86]
[1761306020178,5.9923,191.36,191.31,2.86]
[1761306020380,4.7023,191.36,191.32,2.86]
[1761306020978,5.9923,191.36,191.32,2.86]
[1761306021478,1.29,191.35,191.32,2.86]
[1761306022178,5.9927,191.35,191.32,2.86]
[1761306022575,1.53896472,191.4,191.31,47.06]
[1761306022576,1.29,191.39,191.31,47.06]
[1761306023477,1.29,191.39,191.32,4.39896472]
[1761306024982,5.9924,191.36,191.33,2.86]
[1761306025279,1.29,191.36,191.33,2.86]
[1761306025980,1.29,191.4,191.33,2.86]
[1761306026579,1.29,191.4,191.31,44.2]
[1761306026580,1.29,191.4,191.34,4.39896472]
[1761306027577,4.7023,191.36,191.35,2.86]
[1761306032287,4.7023,191.36,191.35,4.39896472]
[1761306032886,4.7023,191.36,191.35,1.53896472]
[1761306033585,4.7023,191.36,191.35,4.16896472]
[1761306034681,1.29,191.42,191.36,2.63]
[1761306034876,1.29,191.42,191.35,1.53896472]
[1761306034877,1.29,191.42,191.38,2.63]
[1761306036186,4.7014,191.4,191.38,2.63]
[1761306036588,4.7014,191.4,191.38,4.16896472]
[1761306037191,4.7014,191.4,191.39,2.63]
[1761306038195,4.7014,191.4,191.38,1.53896472]
[1761306038393,4.7014,191.4,191.38,4.16896472]
[1761306038989,5.9914,191.4,191.36,1.53896472]
[1761306039192,4.7014,191.4,191.37,2.63]
[1761306039390,4.7014,191.4,191.39,2.63]
[1761306040288,4.7009,191.42,191.39,2.63]
[1761306040886,4.7011,191.41,191.39,2.63]
[1761306041090,4.7011,191.41,191.4,1.53896472]
[1761306041290,4.7011,191.41,191.4,4.16896472]
[1761306041786,4.7007,191.43,191.41,2.63]
[1761306042701,4.7007,191.43,191.42,1.53896472]
[1761306042892,5.9907,191.43,191.42,1.53896472]
[1761306043691,4.7007,191.43,191.42,1.53896472]
[1761306045994,4.7007,191.43,191.41,2.63]
[1761306051406,1.29,191.41,191.4,1.53896472]
[1761306051602,1.29,191.41,191.34,2.63]
[1761306051800,1.29,191.4,191.33,1.53896472]
[1761306052000,1.29,191.4,191.33,4.16896472]
[1761306052196,4.7021,191.37,191.34,2.63]
[1761306052701,1.29,191.4,191.34,2.63]
[1761306052901,1.53896472,191.42,191.34,2.63]
[1761306053193,1.29,191.41,191.34,2.63]
[1761306053998,4.7021,191.37,191.34,2.63]
[1761306061011,5.9921,191.37,191.34,2.63]
[1761306061205,5.9923,191.36,191.33,44.1]
[1761306061511,1.29,191.35,191.33,44.1]
[1761306061911,4.7023,191.36,191.33,46.9]
[1761306062108,5.9923,191.36,191.33,46.9]
[1761306063009,5.9923,191.36,191.34,2.8]
[1761306063309,4.7023,191.36,191.34,2.8]
[1761306064707,5.9919,191.38,191.34,2.8]
[1761306064910,1.29,191.38,191.34,2.8]
[1761306065106,1.29,191.38,191.33,44.1]
[1761306065616,1.29,191.38,191.33,46.9]
[1761306066019,5.9921,191.37,191.33,46.9]
[1761306066419,1.29,191.36,191.33,46.9]
[1761306067118,4.7021,191.37,191.34,2.8]
[1761306067322,5.9921,191.37,191.34,2.8]
[1761306068714,1.29,191.41,191.34,2.40207362]
[1761306068924,1.29,191.44,191.38,2.8]
[1761306069129,1.29,191.42,191.38,2.8]
[1761306070023,4.7012,191.41,191.38,2.8]
[1761306070426,3.89019741,191.44,191.4,2.40207362]
[1761306070725,48.92780696,191.49,191.4,2.40207362]
[1761306070726,5.9906,191.43,191.4,5.20207362]
[1761306072813,5.9906,191.43,191.4,2.40207362]
[1761306073027,4.7006,191.43,191.41,2.8]
[1761306074216,5.9906,191.43,191.41,2.8]
[1761306076321,1.29,191.42,191.4,2.40207362]
[1761306076522,1.29,191.42,191.4,5.20207362]
[1761306076827,4.7006,191.43,191.4,5.20207362]
[1761306076828,4.7006,191.43,191.41,2.8]
[1761306077232,5.9906,191.43,191.4,5.20207362]
[1761306080220,5.9906,191.43,191.41,2.8]
[1761306082526,4.7006,191.43,191.41,2.8]
[1761306082833,1.29,191.41,191.4,44.04]
[1761306083329,4.7009,191.42,191.4,44.04]
[1761306083524,4.7009,191.42,191.41,2.8]
[1761306084934,5.9903,191.44,191.41,2.8]
[1761306085330,5.9903,191.44,191.41,46.82]
[1761306085525,4.6999,191.46,191.42,2.8]
[1761306085836,1.29,191.47,191.42,2.8]
[1761306086332,1.29,191.49,191.42,44.02]
[1761306086534,1.29,191.47,191.42,44.02]
[1761306086736,1.29,191.47,191.42,2.8]
[1761306087036,5.9903,191.44,191.41,46.82]
[1761306087635,5.9903,191.44,191.42,2.77]
[1761306088232,5.9903,191.44,191.41,46.79]
[1761306088435,5.9903,191.44,191.42,2.77]
[1761306088633,4.7003,191.44,191.42,2.77]
[1761306090938,4.6998,191.46,191.42,2.77]
[1761306091136,1.28,191.45,191.43,44.0]
[1761306091924,1.28,191.45,191.41,2.67]
[1761306092132,1.28,191.45,191.43,2.67]
[1761306092635,4.6998,191.46,191.43,2.67]
[1761306094441,4.6993,191.48,191.43,2.67]
[1761306095635,5.9793,191.48,191.43,2.67]
[1761306096540,4.6993,191.48,191.43,2.67]
[1761306097942,4.6989,191.5,191.44,2.67]
[1761306098137,1.28,191.51,191.44,2.67]
[1761306098937,4.6991,191.49,191.44,2.67]
[1761306099339,4.6991,191.49,191.44,7.3701]
[1761306099537,4.6991,191.49,191.45,2.67]
[1761306099736,4.6991,191.49,191.47,2.67]
[1761306100938,1.28,191.58,191.47,2.67]
[1761306101134,1.28,191.56,191.47,46.65]
[1761306101340,1.28,191.54,191.47,46.65]
[1761306101944,4.6988,191.5,191.47,46.65]
[1761306102546,4.6988,191.5,191.47,43.98]
[1761306102751,4.6988,191.5,191.48,2.67]
[1761306104250,5.9788,191.5,191.44,9.77217362]
[1761306104441,1.28,191.49,191.47,43.96]
[1761306104642,1.28,191.49,191.47,46.63]
[1761306105046,1.28,191.49,191.47,2.67]
[1761306105453,4.6988,191.5,191.47,2.67]
[1761306105650,5.9788,191.5,191.47,2.67]
[1761306111745,5.9791,191.49,191.47,2.67]
[1761306113348,5.9791,191.49,191.46,46.63]
[1761306113754,5.9791,191.49,191.47,2.67]
[1761306115355,5.9791,191.49,191.46,46.63]
[1761306115758,5.9793,191.48,191.46,43.96]
[1761306116057,1.28,191.47,191.44,43.92]
[1761306116555,1.28,191.45,191.44,43.92]
[1761306116957,1.28,191.45,191.43,43.92]
[1761306117258,1.28,191.45,191.43,2.67]
[1761306117455,1.28,191.45,191.43,46.59]
[1761306118060,4.7,191.45,191.43,46.59]
[1761306118453,4.7,191.45,191.44,4.20607177]
[1761306122260,4.6995,191.47,191.45,2.67]
[1761306122462,4.6995,191.47,191.46,1.53607177]
[1761306123256,5.9895,191.47,191.46,1.53607177]
[1761306124868,4.6995,191.47,191.46,4.20607177]
[1761306133384,1.29,191.5,191.46,4.20607177]
[1761306133385,4.6992,191.49,191.47,2.67]
[1761306133689,4.6992,191.49,191.48,1.53607177]
[1761306134384,4.6992,191.49,191.48,4.20607177]
[1761306145200,4.6988,191.51,191.49,2.67]
[1761306145491,4.6988,191.51,191.5,1.53607177]
[1761306146788,4.6988,191.51,191.49,2.67]
[1761306146991,1.29,191.49,191.46,43.9]
[1761306147296,3.87027002,191.55,191.48,1.53607177]
[1761306147495,1.29,191.53,191.48,4.20607177]
[1761306147996,4.699,191.5,191.48,4.20607177]
[1761306148595,5.989,191.5,191.48,4.20607177]
[1761306149189,4.699,191.5,191.48,4.20607177]
[1761306149694,4.6985,191.52,191.49,2.66]
[1761306149894,4.6985,191.52,191.51,4.19607177]
[1761306151393,6.3998111,191.59,191.51,4.19607177]
[1761306151394,4.698,191.54,191.52,2.66]
[1761306151697,4.698,191.54,191.53,4.19607177]
[1761306153803,5.9875,191.56,191.53,4.19607177]
[1761306154006,5.9875,191.56,191.55,1.53607177]
[1761306156100,5.9878,191.55,191.54,1.53607177]
[1761306159001,4.6978,191.55,191.54,4.19607177]
[1761306160700,14.25403933,191.66,191.55,2.66]
[1761306160701,1.29,191.6,191.55,2.66]
[1761306160906,1.29,191.6,191.57,1.53607177]
[1761306161108,1.29,191.6,191.55,1.53607177]
[1761306161405,5.9871,191.57,191.55,1.53607177]
[1761306161809,4.6971,191.57,191.55,4.19607177]
[1761306162200,4.6971,191.57,191.55,1.53607177]
[1761306162404,4.6971,191.57,191.56,2.66]
[1761306163006,5.9867,191.59,191.56,2.66]
[1761306163306,4.6967,191.59,191.58,2.66]
[1761306163711,4.6967,191.59,191.58,4.19607177]
[1761306164501,5.9867,191.59,191.58,1.53607177]
[1761306165409,4.6967,191.59,191.58,1.53607177]
[1761306165809,4.6967,191.59,191.58,4.19607177]
[1761306167502,1.29,191.58,191.57,43.8]
[1761306167701,9.3903,191.66,191.54,1.53607177]
[1761306167702,1.29,191.56,191.54,1.53607177]
[1761306167902,1.29,191.56,191.54,43.78]
[1761306168298,5.9877,191.55,191.54,43.78]
[1761306168701,1.29,191.54,191.52,43.78]
[1761306169606,4.6977,191.55,191.52,46.44]
[1761306169806,4.6977,191.55,191.53,4.19607177]
[1761306170907,5.9877,191.55,191.53,1.53607177]
[1761306171805,4.6977,191.55,191.53,1.53607177]
[1761306172017,5.988,191.54,191.52,43.78]
[1761306172216,5.988,191.54,191.51,1.53607177]